bitfinex/quotes_BTCUSD_20230904
["timestamp","ask_amount","ask_price","bid_price","bid_amount"]
[1693828657729,3.20462378,25899.0,25898.0,0.09049847]
[1693828657882,3.20222378,25899.0,25898.0,0.09049847]
[1693828658088,3.21074378,25899.0,25898.0,0.09049847]
[1693828658286,3.11811526,25899.0,25898.0,0.09049847]
[1693828658532,3.21103531,25899.0,25898.0,0.09049847]
[1693828658735,3.11805526,25899.0,25898.0,0.09049847]
[1693828658950,3.11811526,25899.0,25898.0,0.09049847]
[1693828659154,3.11787526,25899.0,25898.0,0.09049847]
[1693828659272,3.11721526,25899.0,25898.0,0.09049847]
[1693828659492,3.20946868,25899.0,25898.0,0.09049847]
[1693828659692,3.11697526,25899.0,25898.0,0.09049847]
[1693828659980,3.11745526,25899.0,25898.0,0.09049847]
[1693828660259,3.11709526,25899.0,25898.0,0.09049847]
[1693828660467,3.11667526,25899.0,25898.0,0.09049847]
[1693828660672,3.11757526,25899.0,25898.0,0.09049847]
[1693828661089,3.11751526,25899.0,25898.0,0.09049847]
[1693828661263,3.11667526,25899.0,25898.0,0.09049847]
[1693828661440,3.11661526,25899.0,25898.0,0.09049847]
[1693828661643,3.11649526,25899.0,25898.0,0.09049847]
[1693828661860,3.11631526,25899.0,25898.0,0.09049847]
[1693828662088,3.11661526,25899.0,25898.0,0.09049847]
[1693828662236,3.11691526,25899.0,25898.0,0.09049847]
[1693828662439,3.11697526,25899.0,25898.0,0.09049847]
[1693828662637,3.11649526,25899.0,25898.0,0.09049847]
[1693828663169,3.11643526,25899.0,25898.0,0.09049847]
[1693828663366,3.11703526,25899.0,25898.0,0.09049847]
[1693828663595,3.11853526,25899.0,25898.0,0.09049847]
[1693828663790,3.11865526,25899.0,25898.0,0.09049847]
[1693828663991,3.12015526,25899.0,25898.0,0.09049847]
[1693828664203,3.12009526,25899.0,25898.0,0.09049847]
[1693828664451,3.21231778,25899.0,25898.0,0.09049847]
[1693828664654,3.21117778,25899.0,25898.0,0.09049847]
[1693828664788,3.21411778,25899.0,25898.0,0.09049847]
[1693828664995,3.20727778,25899.0,25898.0,0.09049847]
[1693828665196,3.20643778,25899.0,25898.0,0.09049847]
[1693828665439,3.20673778,25899.0,25898.0,0.09049847]
[1693828665643,3.15867778,25899.0,25898.0,0.08649847]
[1693828665843,3.18225778,25899.0,25898.0,0.08849847]
[1693828666050,3.20643778,25899.0,25898.0,0.08949847]
[1693828666248,3.15849778,25899.0,25898.0,0.08649847]
[1693828666460,3.15705778,25899.0,25898.0,0.08649847]
[1693828666796,3.20589778,25899.0,25898.0,0.08949847]
[1693828666925,3.20601778,25899.0,25898.0,0.08949847]
[1693828667157,3.20595778,25899.0,25898.0,0.08949847]
[1693828667497,3.20613778,25899.0,25898.0,0.08949847]
[1693828667699,3.20589778,25899.0,25898.0,0.08949847]
[1693828667909,3.20685778,25899.0,25898.0,0.08949847]
[1693828668144,3.20673778,25899.0,25898.0,0.08949847]
[1693828668442,3.20691778,25899.0,25898.0,0.08949847]
[1693828668649,3.20709778,25899.0,25898.0,0.08949847]
[1693828668823,3.20697778,25899.0,25898.0,0.08949847]
[1693828669028,3.20811778,25899.0,25898.0,0.08949847]
[1693828669190,3.20697778,25899.0,25898.0,0.08949847]
[1693828669559,3.20721778,25899.0,25898.0,0.08949847]
[1693828670177,3.21093778,25899.0,25898.0,0.08949847]
[1693828670386,3.06944637,25899.0,25898.0,0.08949847]
[1693828670586,3.06758637,25899.0,25898.0,0.08949847]
[1693828670939,3.06734637,25899.0,25898.0,0.08949847]
[1693828671137,3.06764637,25899.0,25898.0,0.08949847]
[1693828671365,3.06734637,25899.0,25898.0,0.08949847]
[1693828671696,3.06740637,25899.0,25898.0,0.08949847]
[1693828671837,3.06746637,25899.0,25898.0,0.08949847]
[1693828672039,3.06656637,25899.0,25898.0,0.08949847]
[1693828672395,3.06650637,25899.0,25898.0,0.08949847]
[1693828672598,3.30340039,25899.0,25898.0,0.08949847]
[1693828672798,3.28852039,25899.0,25898.0,0.08949847]
[1693828673002,3.28846039,25899.0,25898.0,0.08949847]
[1693828673141,3.28834039,25899.0,25898.0,0.08949847]
[1693828673368,3.28822039,25899.0,25898.0,0.08949847]
[1693828673558,3.28834039,25899.0,25898.0,0.08949847]
[1693828673983,3.28942039,25899.0,25898.0,0.08949847]
[1693828674202,3.28888039,25899.0,25898.0,0.08949847]
[1693828674407,3.28834039,25899.0,25898.0,0.08949847]
[1693828674822,3.28840039,25899.0,25898.0,0.08949847]
[1693828675155,3.26612039,25899.0,25898.0,0.08949847]
[1693828675432,3.26720039,25899.0,25898.0,0.08949847]
[1693828675678,3.26660039,25899.0,25898.0,0.08949847]
[1693828675858,3.27002039,25899.0,25898.0,0.08949847]
[1693828676014,3.26930039,25899.0,25898.0,0.08949847]
[1693828676440,3.26960039,25899.0,25898.0,0.08949847]
[1693828676636,3.26966039,25899.0,25898.0,0.08949847]
[1693828676845,3.26978039,25899.0,25898.0,0.08949847]
[1693828677028,3.27020039,25899.0,25898.0,0.08949847]
[1693828677247,3.27026039,25899.0,25898.0,0.08949847]
[1693828677705,3.27314039,25899.0,25898.0,0.08949847]
[1693828677872,3.27026039,25899.0,25898.0,0.08949847]
[1693828678297,3.27014039,25899.0,25898.0,0.08949847]
[1693828678499,3.27020039,25899.0,25898.0,0.08949847]
[1693828678876,3.27014039,25899.0,25898.0,0.08949847]
[1693828679138,3.27020039,25899.0,25898.0,0.08949847]
[1693828679343,3.27002039,25899.0,25898.0,0.08949847]
[1693828679562,3.26954039,25899.0,25898.0,0.08949847]
[1693828679768,3.26930039,25899.0,25898.0,0.08949847]
[1693828679977,3.26966039,25899.0,25898.0,0.08949847]
[1693828680177,3.26972039,25899.0,25898.0,0.08949847]
[1693828680478,3.26942039,25899.0,25898.0,0.08949847]
[1693828680636,3.20948039,25899.0,25898.0,0.08949847]
[1693828680846,3.20924039,25899.0,25898.0,0.08949847]
[1693828681015,3.20912039,25899.0,25898.0,0.08949847]
[1693828681219,3.20936039,25899.0,25898.0,0.08949847]
[1693828681418,3.20750039,25899.0,25898.0,0.08949847]
[1693828681769,3.20708039,25899.0,25898.0,0.08949847]
[1693828681989,3.20852039,25899.0,25898.0,0.08949847]
[1693828682199,3.20708039,25899.0,25898.0,0.08949847]
[1693828682399,3.20714039,25899.0,25898.0,0.08949847]
[1693828682601,3.19142039,25899.0,25898.0,0.08949847]
[1693828682820,3.19586039,25899.0,25898.0,0.08949847]
[1693828683108,3.19676039,25899.0,25898.0,0.08949847]
[1693828683324,3.19292039,25899.0,25898.0,0.08949847]
[1693828683453,3.19298039,25899.0,25898.0,0.08949847]
[1693828683658,3.19310039,25899.0,25898.0,0.08949847]
[1693828683880,3.19328039,25899.0,25898.0,0.08949847]
[1693828684104,3.19340039,25899.0,25898.0,0.08949847]
[1693828684303,3.19352039,25899.0,25898.0,0.08949847]
[1693828684505,3.19400039,25899.0,25898.0,0.08949847]
[1693828684732,3.19436039,25899.0,25898.0,0.08949847]
[1693828684932,3.19472039,25899.0,25898.0,0.08949847]
[1693828685144,3.19436039,25899.0,25898.0,0.08949847]
[1693828685340,3.19448039,25899.0,25898.0,0.08949847]
[1693828685518,3.19472039,25899.0,25898.0,0.08949847]
[1693828685720,3.19484039,25899.0,25898.0,0.08949847]
[1693828685924,3.19442039,25899.0,25898.0,0.08949847]
[1693828686133,3.19466039,25899.0,25898.0,0.08949847]
[1693828686281,3.19622039,25899.0,25898.0,0.08949847]
[1693828686483,3.19610039,25899.0,25898.0,0.08949847]
[1693828686687,3.19616039,25899.0,25898.0,0.08949847]
[1693828686978,3.19820039,25899.0,25898.0,0.08949847]
[1693828687164,3.19616039,25899.0,25898.0,0.08949847]
[1693828687383,3.19886039,25899.0,25898.0,0.08949847]
[1693828687519,3.19898039,25899.0,25898.0,0.08949847]
[1693828687736,3.20090039,25899.0,25898.0,0.08949847]
[1693828688108,3.19916039,25899.0,25898.0,0.08949847]
[1693828688386,3.19766039,25899.0,25898.0,0.08949847]
[1693828688613,3.19742039,25899.0,25898.0,0.08949847]
[1693828688970,3.19940039,25899.0,25898.0,0.08949847]
[1693828689174,3.19928039,25899.0,25898.0,0.08949847]
[1693828689361,3.19754039,25899.0,25898.0,0.08949847]
[1693828689563,3.20060039,25899.0,25898.0,0.08949847]
[1693828689942,3.20072039,25899.0,25898.0,0.08949847]
[1693828690122,3.20060039,25899.0,25898.0,0.08949847]
[1693828690346,3.20084039,25899.0,25898.0,0.08949847]
[1693828690548,3.19922039,25899.0,25898.0,0.08949847]
[1693828690697,3.19856039,25899.0,25898.0,0.08949847]
[1693828690894,3.19898039,25899.0,25898.0,0.08949847]
[1693828691089,3.19892039,25899.0,25898.0,0.08949847]
[1693828691297,3.19916039,25899.0,25898.0,0.08949847]
[1693828691497,3.19910039,25899.0,25898.0,0.08949847]
[1693828692013,3.20108039,25899.0,25898.0,0.08949847]
[1693828692231,3.19850039,25899.0,25898.0,0.08949847]
[1693828692395,3.3371718,25899.0,25898.0,0.08949847]
[1693828692613,3.3372318,25899.0,25898.0,0.08949847]
[1693828692965,3.20000039,25899.0,25898.0,0.08949847]
[1693828693178,3.3371118,25899.0,25898.0,0.08949847]
[1693828693419,3.3389118,25899.0,25898.0,0.08949847]
[1693828693636,3.3417918,25899.0,25898.0,0.08949847]
[1693828693841,3.3418518,25899.0,25898.0,0.08949847]
[1693828694346,3.24950928,25899.0,25898.0,0.08949847]
[1693828694599,3.24728928,25899.0,25898.0,0.08949847]
[1693828694811,3.24782928,25899.0,25898.0,0.08949847]
[1693828695014,3.24746928,25899.0,25898.0,0.08949847]
[1693828695211,3.24752928,25899.0,25898.0,0.08949847]
[1693828695370,3.24962928,25899.0,25898.0,0.08949847]
[1693828695568,3.24740928,25899.0,25898.0,0.08949847]
[1693828695775,3.24746928,25899.0,25898.0,0.08949847]
[1693828695957,3.24782928,25899.0,25898.0,0.08949847]
[1693828696159,3.24728928,25899.0,25898.0,0.08949847]
[1693828696384,3.24434928,25899.0,25898.0,0.08949847]
[1693828696550,3.24440928,25899.0,25898.0,0.08949847]
[1693828696752,3.24446928,25899.0,25898.0,0.08949847]
[1693828696959,3.24506928,25899.0,25898.0,0.08949847]
[1693828697162,3.24530928,25899.0,25898.0,0.08949847]
[1693828697372,3.43018449,25899.0,25898.0,0.08949847]
[1693828697580,3.42892449,25899.0,25898.0,0.08949847]
[1693828697786,3.43060449,25899.0,25898.0,0.08949847]
[1693828697987,3.43066449,25899.0,25898.0,0.08949847]
[1693828698190,3.43072449,25899.0,25898.0,0.08949847]
[1693828698641,3.43138449,25899.0,25898.0,0.08949847]
[1693828698818,3.42934449,25899.0,25898.0,0.08949847]
[1693828699017,3.42964449,25899.0,25898.0,0.08949847]
[1693828699296,3.42988449,25899.0,25898.0,0.08949847]
[1693828699501,3.29133308,25899.0,25898.0,0.08949847]
[1693828699646,3.29139308,25899.0,25898.0,0.08949847]
[1693828699849,3.29145308,25899.0,25898.0,0.08949847]
[1693828700250,3.29151308,25899.0,25898.0,0.08949847]
[1693828700432,3.72110595,25899.0,25898.0,0.08949847]
[1693828700631,3.72116595,25899.0,25898.0,0.08949847]
[1693828700994,3.72092595,25899.0,25898.0,0.08949847]
[1693828701197,3.72110595,25899.0,25898.0,0.08949847]
[1693828701541,3.72116595,25899.0,25898.0,0.08949847]
[1693828701741,3.71102595,25899.0,25898.0,0.08949847]
[1693828701934,3.71126595,25899.0,25898.0,0.08949847]
[1693828702394,3.71108595,25899.0,25898.0,0.08949847]
[1693828702602,3.71120595,25899.0,25898.0,0.08949847]
[1693828702807,3.71132595,25899.0,25898.0,0.08949847]
[1693828703016,3.71162595,25899.0,25898.0,0.08949847]
[1693828703430,3.71246595,25899.0,25898.0,0.08949847]
[1693828703639,3.71258595,25899.0,25898.0,0.08949847]
[1693828703844,3.71276595,25899.0,25898.0,0.08949847]
[1693828704043,3.71288595,25899.0,25898.0,0.08949847]
[1693828704241,3.4221559,25899.0,25898.0,0.08949847]
[1693828704442,3.4222159,25899.0,25898.0,0.08949847]
[1693828704670,3.4222759,25899.0,25898.0,0.08949847]
[1693828704879,3.4220959,25899.0,25898.0,0.08949847]
[1693828705083,3.29031308,25899.0,25898.0,0.08949847]
[1693828705286,3.29049308,25899.0,25898.0,0.08949847]
[1693828705508,3.29061308,25899.0,25898.0,0.08949847]
[1693828705682,3.29067308,25899.0,25898.0,0.08949847]
[1693828705881,3.29073308,25899.0,25898.0,0.08949847]
[1693828706083,3.29067308,25899.0,25898.0,0.08949847]
[1693828706288,3.21453308,25899.0,25898.0,0.08949847]
[1693828706484,3.35321393,25899.0,25898.0,0.08949847]
[1693828708087,3.35330216,25899.0,25898.0,0.08949847]
[1693828708601,3.33330216,25899.0,25898.0,0.08949847]
[1693828709815,3.39828216,25899.0,25898.0,0.08949847]
[1693828710171,3.33330216,25899.0,25898.0,0.08949847]
[1693828710554,3.40116216,25899.0,25898.0,0.08949847]
[1693828710737,3.40368216,25899.0,25898.0,0.08949847]
[1693828710957,3.26440318,25899.0,25898.0,0.08949847]
[1693828711145,3.26374318,25899.0,25898.0,0.08949847]
[1693828711337,3.26500318,25899.0,25898.0,0.08949847]
[1693828711539,3.26488318,25899.0,25898.0,0.08949847]
[1693828711749,3.26500318,25899.0,25898.0,0.08949847]
[1693828711902,3.26512318,25899.0,25898.0,0.08949847]
[1693828712117,3.26518318,25899.0,25898.0,0.08949847]
[1693828712306,3.26554318,25899.0,25898.0,0.08949847]
[1693828712514,3.26572318,25899.0,25898.0,0.08949847]
[1693828712710,3.26560318,25899.0,25898.0,0.08949847]
[1693828712908,3.26488318,25899.0,25898.0,0.08949847]
[1693828713131,3.26518318,25899.0,25898.0,0.08949847]
[1693828713338,3.26554318,25899.0,25898.0,0.08949847]
[1693828713545,3.26500318,25899.0,25898.0,0.08949847]
[1693828713689,3.26506318,25899.0,25898.0,0.08949847]
[1693828714342,3.26530318,25899.0,25898.0,0.08949847]
[1693828714723,3.26596318,25899.0,25898.0,0.08949847]
[1693828714928,3.26602318,25899.0,25898.0,0.08949847]
[1693828715123,3.26506318,25899.0,25898.0,0.08949847]
[1693828715324,3.26536318,25899.0,25898.0,0.08949847]
[1693828715549,3.26584318,25899.0,25898.0,0.08949847]
[1693828715752,3.26488318,25899.0,25898.0,0.08949847]
[1693828715926,3.26494318,25899.0,25898.0,0.08949847]
[1693828716227,3.26488318,25899.0,25898.0,0.08949847]
[1693828716598,3.45873682,25899.0,25898.0,0.08949847]
[1693828716776,3.72214845,25899.0,25898.0,0.08949847]
[1693828717008,3.72016845,25899.0,25898.0,0.08949847]
[1693828717266,3.71992845,25899.0,25898.0,0.08949847]
[1693828717450,3.72352845,25899.0,25898.0,0.08949847]
[1693828717647,4.41905074,25899.0,25898.0,0.08949847]
[1693828717852,4.42325074,25899.0,25898.0,0.08949847]
[1693828718026,4.42523074,25899.0,25898.0,0.08949847]
[1693828718234,4.42445074,25899.0,25898.0,0.08949847]
[1693828718534,4.42427074,25899.0,25898.0,0.08949847]
[1693828718783,4.42457074,25899.0,25898.0,0.08949847]
[1693828718923,4.40939074,25899.0,25898.0,0.08949847]
[1693828719119,4.40927074,25899.0,25898.0,0.08949847]
[1693828719462,4.40963074,25899.0,25898.0,0.08949847]
[1693828719681,4.41221074,25899.0,25898.0,0.08949847]
[1693828719835,4.41185074,25899.0,25898.0,0.08949847]
[1693828720040,4.41227074,25899.0,25898.0,0.08949847]
[1693828720257,4.64322161,25899.0,25898.0,0.08949847]
[1693828720461,4.64310161,25899.0,25898.0,0.08949847]
[1693828720663,4.64232161,25899.0,25898.0,0.08949847]
[1693828720865,4.64214161,25899.0,25898.0,0.08949847]
[1693828721074,4.64484161,25899.0,25898.0,0.08949847]
[1693828721281,4.64388161,25899.0,25898.0,0.08949847]
[1693828721429,4.64448161,25899.0,25898.0,0.08949847]
[1693828721632,4.64406161,25899.0,25898.0,0.08949847]
[1693828721834,4.64418161,25899.0,25898.0,0.08949847]
[1693828722126,4.64388161,25899.0,25898.0,0.08949847]
[1693828722306,4.64370161,25899.0,25898.0,0.08949847]
[1693828722506,4.64334161,25899.0,25898.0,0.08949847]
[1693828722725,4.64316161,25899.0,25898.0,0.08949847]
[1693828722938,4.70513074,25899.0,25898.0,0.08949847]
[1693828723156,5.02037074,25899.0,25898.0,0.08949847]
[1693828723372,5.00825074,25899.0,25898.0,0.08949847]
[1693828723585,5.00861074,25899.0,25898.0,0.08949847]
[1693828723792,5.01005074,25899.0,25898.0,0.08949847]
[1693828723997,4.98761074,25899.0,25898.0,0.08849847]
[1693828724209,5.00813074,25899.0,25898.0,0.08849847]
[1693828724416,5.01797074,25899.0,25898.0,0.08849847]
[1693828724631,5.01617074,25899.0,25898.0,0.08849847]
[1693828724842,5.01569074,25899.0,25898.0,0.08849847]
[1693828725067,5.01533074,25899.0,25898.0,0.08849847]
[1693828725275,5.01857074,25899.0,25898.0,0.08849847]
[1693828725474,4.96229074,25899.0,25898.0,0.08649847]
[1693828725683,4.98977074,25899.0,25898.0,0.08649847]
[1693828725888,5.01137074,25899.0,25898.0,0.08649847]
[1693828726114,4.99997074,25899.0,25898.0,0.08649847]
[1693828726330,4.97861074,25899.0,25898.0,0.08649847]
[1693828726536,4.97849074,25899.0,25898.0,0.08649847]
[1693828726737,5.00201074,25899.0,25898.0,0.08649847]
[1693828726941,5.00921074,25899.0,25898.0,0.08649847]
[1693828727148,5.00237074,25899.0,25898.0,0.08649847]
[1693828727355,5.00429074,25899.0,25898.0,0.08649847]
[1693828727568,5.00393074,25899.0,25898.0,0.08649847]
[1693828727790,5.00381074,25899.0,25898.0,0.08649847]
[1693828727991,5.00309074,25899.0,25898.0,0.08649847]
[1693828728404,5.00321074,25899.0,25898.0,0.08649847]
[1693828728578,5.00237074,25899.0,25898.0,0.08649847]
[1693828728734,5.00225074,25899.0,25898.0,0.08649847]
[1693828728942,5.00153074,25899.0,25898.0,0.08649847]
[1693828729147,5.00849074,25899.0,25898.0,0.08649847]
[1693828729350,5.00009074,25899.0,25898.0,0.08649847]
[1693828729570,5.00117074,25899.0,25898.0,0.08649847]
[1693828729772,5.00477074,25899.0,25898.0,0.08649847]
[1693828729946,5.00681074,25899.0,25898.0,0.08649847]
[1693828730158,5.00669074,25899.0,25898.0,0.08649847]
[1693828730359,5.00609074,25899.0,25898.0,0.08649847]
[1693828730559,5.00453074,25899.0,25898.0,0.08649847]
[1693828730760,5.00585074,25899.0,25898.0,0.08649847]
[1693828730962,5.00645074,25899.0,25898.0,0.08649847]
[1693828731143,5.00657074,25899.0,25898.0,0.08649847]
[1693828731335,5.00645074,25899.0,25898.0,0.08649847]
[1693828731723,5.00765074,25899.0,25898.0,0.08649847]
[1693828731862,5.00753074,25899.0,25898.0,0.08649847]
[1693828732041,5.01101074,25899.0,25898.0,0.08649847]
[1693828732294,5.01593074,25899.0,25898.0,0.08649847]
[1693828732518,5.01365074,25899.0,25898.0,0.08649847]
[1693828732782,5.01461074,25899.0,25898.0,0.08649847]
[1693828732930,5.01269074,25899.0,25898.0,0.08649847]
[1693828733319,5.01317074,25899.0,25898.0,0.08649847]
[1693828733525,5.01797074,25899.0,25898.0,0.08649847]
[1693828733725,5.01197074,25899.0,25898.0,0.08649847]
[1693828733925,5.04281074,25899.0,25898.0,0.08649847]
[1693828734127,5.03153074,25899.0,25898.0,0.08649847]
[1693828734394,5.03261074,25899.0,25898.0,0.08649847]
[1693828734596,5.03333074,25899.0,25898.0,0.08649847]
[1693828734798,5.03213074,25899.0,25898.0,0.08649847]
[1693828734996,5.03045074,25899.0,25898.0,0.08649847]
[1693828735244,5.02973074,25899.0,25898.0,0.08649847]
[1693828735449,5.02853074,25899.0,25898.0,0.08649847]
[1693828735624,5.02541074,25899.0,25898.0,0.08649847]
[1693828735755,5.02457074,25899.0,25898.0,0.08649847]
[1693828735985,5.01677074,25899.0,25898.0,0.08649847]
[1693828736189,5.01617074,25899.0,25898.0,0.08649847]
[1693828736391,5.01593074,25899.0,25898.0,0.08649847]
[1693828736597,5.2934087,25899.0,25898.0,0.08649847]
[1693828736843,5.2936487,25899.0,25898.0,0.08649847]
[1693828737043,5.2941287,25899.0,25898.0,0.08649847]
[1693828737415,5.3010887,25899.0,25898.0,0.08649847]
[1693828737619,5.3012087,25899.0,25898.0,0.08649847]
[1693828737795,5.3008487,25899.0,25898.0,0.08649847]
[1693828738002,5.3006087,25899.0,25898.0,0.08649847]
[1693828738199,5.3019287,25899.0,25898.0,0.08649847]
[1693828738401,5.3021687,25899.0,25898.0,0.08649847]
[1693828738946,5.3022887,25899.0,25898.0,0.08649847]
[1693828739149,5.3006087,25899.0,25898.0,0.08649847]
[1693828739384,5.3008487,25899.0,25898.0,0.08649847]
[1693828739581,5.3014487,25899.0,25898.0,0.08649847]
[1693828739784,5.3024087,25899.0,25898.0,0.08649847]
[1693828739969,5.3010887,25899.0,25898.0,0.08649847]
[1693828740181,5.3015687,25899.0,25898.0,0.08649847]
[1693828740379,5.3014487,25899.0,25898.0,0.08649847]
[1693828740584,5.3020487,25899.0,25898.0,0.08649847]
[1693828740884,5.3025287,25899.0,25898.0,0.08649847]
[1693828741092,5.3019287,25899.0,25898.0,0.08649847]
[1693828741245,5.3021687,25899.0,25898.0,0.08649847]
[1693828741463,5.3040887,25899.0,25898.0,0.08649847]
[1693828741658,5.3043287,25899.0,25898.0,0.08649847]
[1693828741880,5.3057687,25899.0,25898.0,0.08649847]
[1693828742090,5.3045687,25899.0,25898.0,0.08649847]
[1693828742288,5.3050487,25899.0,25898.0,0.08649847]
[1693828742611,5.3052887,25899.0,25898.0,0.08649847]
[1693828742915,5.3078087,25899.0,25898.0,0.08649847]
[1693828743116,5.3085287,25899.0,25898.0,0.08649847]
[1693828743344,5.3086487,25899.0,25898.0,0.08649847]
[1693828743537,5.3088887,25899.0,25898.0,0.08649847]
[1693828743695,5.03213074,25899.0,25898.0,0.08649847]
[1693828743897,5.03309074,25899.0,25898.0,0.08649847]
[1693828744107,6.60125074,25899.0,25898.0,0.08649847]
[1693828744307,6.60137074,25899.0,25898.0,0.08649847]
[1693828744535,6.60149074,25899.0,25898.0,0.08649847]
[1693828744676,6.60233074,25899.0,25898.0,0.08649847]
[1693828745314,6.60305074,25899.0,25898.0,0.08649847]
[1693828745719,6.60317074,25899.0,25898.0,0.08649847]
[1693828746170,6.60401074,25899.0,25898.0,0.08649847]
[1693828746374,6.60413074,25899.0,25898.0,0.08649847]
[1693828746581,6.59545074,25899.0,25898.0,0.08649847]
[1693828746782,6.59377074,25899.0,25898.0,0.08649847]
[1693828746983,6.59461074,25899.0,25898.0,0.08649847]
[1693828747131,6.59485074,25899.0,25898.0,0.08649847]
[1693828747331,6.59509074,25899.0,25898.0,0.08649847]
[1693828747582,6.59521074,25899.0,25898.0,0.08649847]
[1693828747796,6.59605074,25899.0,25898.0,0.08649847]
[1693828747996,6.59533074,25899.0,25898.0,0.08649847]
[1693828748198,6.59545074,25899.0,25898.0,0.08649847]
[1693828748402,6.59497074,25899.0,25898.0,0.08649847]
[1693828748602,6.59509074,25899.0,25898.0,0.08649847]
[1693828749025,6.59365074,25899.0,25898.0,0.08649847]
[1693828749232,6.59653074,25899.0,25898.0,0.08649847]
[1693828749521,6.59365074,25899.0,25898.0,0.08649847]
[1693828749701,6.59665074,25899.0,25898.0,0.08649847]
[1693828749907,6.59641074,25899.0,25898.0,0.08649847]
[1693828750099,6.59653074,25899.0,25898.0,0.08649847]
[1693828750340,6.59677074,25899.0,25898.0,0.08649847]
[1693828750522,6.59641074,25899.0,25898.0,0.08649847]
[1693828751045,6.59785074,25899.0,25898.0,0.08649847]
[1693828751350,6.59989074,25899.0,25898.0,0.08649847]
[1693828751528,6.59653074,25899.0,25898.0,0.08649847]
[1693828751735,6.59605074,25899.0,25898.0,0.08649847]
[1693828751936,6.59629074,25899.0,25898.0,0.08649847]
[1693828752341,6.59641074,25899.0,25898.0,0.08649847]
[1693828752497,6.59581074,25899.0,25898.0,0.08649847]
[1693828752725,6.59557074,25899.0,25898.0,0.08649847]
[1693828752916,6.59593074,25899.0,25898.0,0.08649847]
[1693828753169,6.59485074,25899.0,25898.0,0.08649847]
[1693828753590,6.59413074,25899.0,25898.0,0.08649847]
[1693828753791,6.59437074,25899.0,25898.0,0.08649847]
[1693828754192,6.59473074,25899.0,25898.0,0.08649847]
[1693828754401,6.59485074,25899.0,25898.0,0.08649847]
[1693828754606,6.59461074,25899.0,25898.0,0.08649847]
[1693828754804,6.61369074,25899.0,25898.0,0.08649847]
[1693828755042,6.60997074,25899.0,25898.0,0.08649847]
[1693828755243,6.60973074,25899.0,25898.0,0.08649847]
[1693828755461,6.60889074,25899.0,25898.0,0.08649847]
[1693828755658,6.60817074,25899.0,25898.0,0.08649847]
[1693828755800,6.60757074,25899.0,25898.0,0.08649847]
[1693828756005,6.60733074,25899.0,25898.0,0.08649847]
[1693828756218,6.8856487,25899.0,25898.0,0.08649847]
[1693828756406,6.8833687,25899.0,25898.0,0.08649847]
[1693828756608,6.8832487,25899.0,25898.0,0.08649847]
[1693828756827,6.8831287,25899.0,25898.0,0.08649847]
[1693828757028,6.8834887,25899.0,25898.0,0.08649847]
[1693828757259,6.8822887,25899.0,25898.0,0.08649847]
[1693828757908,6.8821687,25899.0,25898.0,0.08649847]
[1693828758164,6.8824087,25899.0,25898.0,0.08649847]
[1693828758366,6.8831287,25899.0,25898.0,0.08649847]
[1693828758583,6.8827687,25899.0,25898.0,0.08649847]
[1693828758813,6.8830087,25899.0,25898.0,0.08649847]
[1693828759017,6.8828887,25899.0,25898.0,0.08649847]
[1693828759195,6.8832487,25899.0,25898.0,0.08649847]
[1693828759399,6.60601074,25899.0,25898.0,0.08649847]
[1693828759613,6.64310893,25899.0,25898.0,0.08649847]
[1693828759817,6.63380893,25899.0,25898.0,0.08649847]
[1693828760034,6.63050893,25899.0,25898.0,0.08649847]
[1693828760239,6.62504893,25899.0,25898.0,0.08649847]
[1693828760417,6.62672893,25899.0,25898.0,0.08649847]
[1693828760621,6.62774893,25899.0,25898.0,0.08649847]
[1693828760822,6.40747074,25899.0,25898.0,0.08649847]
[1693828761173,6.40801074,25899.0,25898.0,0.08649847]
[1693828761390,6.40729074,25899.0,25898.0,0.08649847]
[1693828761611,6.40717074,25899.0,25898.0,0.08649847]
[1693828761815,6.40741074,25899.0,25898.0,0.08649847]
[1693828762020,6.40849074,25899.0,25898.0,0.08649847]
[1693828762224,6.41179074,25899.0,25898.0,0.08649847]
[1693828762426,6.41203074,25899.0,25898.0,0.08649847]
[1693828762638,6.41689074,25899.0,25898.0,0.08649847]
[1693828762886,6.54889074,25899.0,25898.0,0.08649847]
[1693828763096,6.55069074,25899.0,25898.0,0.08649847]
[1693828763276,6.55117074,25899.0,25898.0,0.08649847]
[1693828763475,6.55141074,25899.0,25898.0,0.08649847]
[1693828763703,6.8350087,25899.0,25898.0,0.08649847]
[1693828763905,6.8354887,25899.0,25898.0,0.08649847]
[1693828764136,6.8352487,25899.0,25898.0,0.08649847]
[1693828764340,7.08849164,25899.0,25898.0,0.08649847]
[1693828764517,6.95205164,25899.0,25898.0,0.08649847]
[1693828764716,6.95211164,25899.0,25898.0,0.08649847]
[1693828764897,6.95247164,25899.0,25898.0,0.08649847]
[1693828765145,6.95259164,25899.0,25898.0,0.08649847]
[1693828765263,6.6941887,25899.0,25898.0,0.08649847]
[1693828765463,6.6943087,25899.0,25898.0,0.08649847]
[1693828765670,7.11723441,25899.0,25898.0,0.08649847]
[1693828765873,7.11987441,25899.0,25898.0,0.08649847]
[1693828766067,7.12011441,25899.0,25898.0,0.08649847]
[1693828766324,6.8269687,25899.0,25898.0,0.08649847]
[1693828766524,6.8272087,25899.0,25898.0,0.08649847]
[1693828766701,6.6912487,25899.0,25898.0,0.08649847]
[1693828766913,6.6914287,25899.0,25898.0,0.08649847]
[1693828767084,6.95820858,25899.0,25898.0,0.08649847]
[1693828767281,6.95832858,25899.0,25898.0,0.08649847]
[1693828767474,6.95844858,25899.0,25898.0,0.08649847]
[1693828767700,6.6919687,25899.0,25898.0,0.08649847]
[1693828767890,6.6935287,25899.0,25898.0,0.08649847]
[1693828768104,6.8302087,25899.0,25898.0,0.08649847]
[1693828768304,6.8274487,25899.0,25898.0,0.08649847]
[1693828768507,7.08965565,25899.0,25898.0,0.08649847]
[1693828768706,0.480093,25895.0,25894.0,0.06226059]
[1693828768970,0.073893,25894.0,25893.0,0.19]
[1693828769177,0.66090489,25894.0,25893.0,0.19]
[1693828769387,0.68090489,25894.0,25893.0,0.19]
[1693828770991,0.70490489,25894.0,25893.0,0.19]
[1693828771388,0.72890489,25894.0,25893.0,0.19]
[1693828772271,0.013893,25890.0,25889.0,0.11709336]
[1693828772482,0.013893,25890.0,25888.0,100.25197943]
[1693828772680,0.013893,25889.0,25888.0,100.05857943]
[1693828773392,0.013893,25889.0,25888.0,100.07028592]
[1693828773714,0.013893,25889.0,25888.0,100.16296397]
[1693828773849,0.013893,25889.0,25888.0,100.20154353]
[1693828774250,0.014893,25889.0,25888.0,100.20354353]
[1693828775499,0.015893,25889.0,25888.0,100.20454353]
[1693828775866,0.015893,25889.0,25888.0,99.84868812]
[1693828776640,0.014893,25889.0,25888.0,99.84668812]
[1693828776849,0.015893,25889.0,25888.0,99.84868812]
[1693828777262,0.013893,25889.0,25888.0,99.84568812]
[1693828777466,0.030893,25889.0,25888.0,99.84568812]
[1693828778550,0.042893,25889.0,25888.0,99.84568812]
[1693828779172,0.042893,25889.0,25888.0,99.9847052]
[1693828780174,0.042893,25889.0,25888.0,100.00869076]
[1693828782544,0.042893,25889.0,25888.0,100.19869076]
[1693828783871,0.042893,25889.0,25888.0,100.00869076]
[1693828787241,0.042893,25889.0,25888.0,99.95011133]